bitfinex-derivatives/quotes_SOLF0:USTF0_20241009
["timestamp","ask_amount","ask_price","bid_price","bid_amount"]
[1728456018094,3.4835,143.6,143.59,10.74]
[1728456027410,3.4832,143.61,143.59,10.74]
[1728456027599,3.4832,143.61,143.6,10.74]
[1728456028811,3.4835,143.6,143.59,10.74]
[1728456030007,3.4835,143.6,143.58,10.74]
[1728456030513,3.4837,143.59,143.58,10.74]
[1728456032609,3.4837,143.59,143.57,1.336]
[1728456032813,3.4837,143.59,143.58,10.74]
[1728456048922,10.74,143.61,143.53,1.3316]
[1728456049232,10.74,143.61,143.55,10.74]
[1728456049433,10.74,143.6,143.55,10.74]
[1728456049627,3.4841,143.58,143.55,10.74]
[1728456050227,10.74,143.6,143.55,10.74]
[1728456051120,3.4842,143.57,143.55,10.74]
[1728456055225,3.4844,143.56,143.54,10.74]
[1728456058029,10.74,143.59,143.54,10.74]
[1728456058332,3.4846,143.55,143.53,12.0716]
[1728456060135,3.4846,143.55,143.53,1.3316]
[1728456060337,3.4849,143.54,143.53,1.3316]
[1728456060524,10.74,143.58,143.53,1.3316]
[1728456061030,3.4848,143.55,143.53,1.3316]
[1728456061937,15.58,143.59,143.54,10.74]
[1728456062134,3.4846,143.56,143.54,10.74]
[1728456064137,3.4846,143.55,143.54,10.74]
[1728456065936,3.4843,143.57,143.54,14.2249]
[1728456066834,3.4843,143.57,143.55,10.74]
[1728456067226,3.4839,143.58,143.56,10.74]
[1728456067536,97.49509845,143.59,143.56,10.74]
[1728456067732,97.49509845,143.59,143.58,10.74]
[1728456068330,0.12502,143.63,143.58,10.74]
[1728456068528,3.4831,143.62,143.6,10.74]
[1728456070235,3.4832,143.61,143.6,10.74]
[1728456071136,0.12502,143.63,143.6,10.74]
[1728456071333,0.12502,143.63,143.61,10.74]
[1728456071538,0.12502,143.63,143.58,1.3303]
[1728456071539,0.12502,143.63,143.62,10.74]
[1728456072450,3.60782,143.63,143.62,10.74]
[1728456077241,0.12502,143.63,143.62,10.74]
[1728456077842,3.4821,143.66,143.63,3.4826]
[1728456078049,3.4821,143.66,143.65,10.74]
[1728456087755,3.4822,143.65,143.64,10.74]
[1728456088147,3.4824,143.64,143.63,1.4265]
[1728456088455,3.4824,143.64,143.63,12.1665]
[1728456093055,3.4823,143.65,143.63,12.1665]
[1728456093253,3.4823,143.65,143.64,10.74]
[1728456105173,1.45012,143.69,143.64,10.74]
[1728456105473,3.4819,143.67,143.66,10.74]
[1728456105969,0.12502,143.69,143.66,10.74]
[1728456106173,3.4816,143.68,143.67,10.74]
[1728456114688,3.4816,143.68,143.67,10.74]
[1728456116792,0.12502,143.69,143.66,10.74]
[1728456116994,3.4817,143.67,143.66,10.74]
[1728456117391,3.482,143.66,143.65,15.58]
[1728456117596,3.482,143.66,143.65,10.74]
[1728456119189,3.4824,143.65,143.63,7.6815]
[1728456119397,3.4824,143.65,143.64,10.74]
[1728456120896,0.12502,143.69,143.64,10.74]
[1728456121083,3.4821,143.66,143.64,10.74]
[1728456125298,3.4822,143.65,143.64,10.74]
[1728456127410,3.4821,143.66,143.64,10.74]
[1728456127703,4.96502,143.69,143.64,10.74]
[1728456127902,3.4822,143.66,143.64,10.74]
[1728456128106,4.96502,143.69,143.64,10.74]
[1728456128298,4.96502,143.69,143.66,10.74]
[1728456128805,3.4817,143.67,143.66,10.74]
[1728456134705,3.4816,143.68,143.66,10.74]
[1728456134907,3.4816,143.68,143.67,10.74]
[1728456136716,0.12502,143.69,143.66,10.74]
[1728456137716,3.4817,143.67,143.66,10.74]
[1728456174248,3.4821,143.66,143.63,9.7291]
[1728456174549,3.4821,143.66,143.65,10.74]
[1728456180864,0.12502,143.69,143.65,10.74]
[1728456181153,0.12502,143.69,143.68,10.74]
[1728456182651,3.60632,143.69,143.68,10.74]
[1728456191055,0.12502,143.69,143.66,4.82]
[1728456191255,3.4816,143.68,143.66,4.82]
[1728456191453,3.4816,143.68,143.67,10.74]
[1728456193177,3.4822,143.65,143.64,2.721]
[1728456193354,3.4822,143.65,143.64,12.0501]
[1728456193554,0.12502,143.69,143.64,10.74]
[1728456193759,0.12502,143.69,143.68,10.74]
[1728456194962,3.60622,143.69,143.67,10.74]
[1728456195264,0.12502,143.69,143.67,10.74]
[1728456197564,3.4815,143.68,143.67,10.74]
[1728456204874,3.4822,143.65,143.63,1.4265]
[1728456205071,3.4822,143.65,143.64,10.74]
[1728456209973,3.4822,143.65,143.63,1.4265]
[1728456210474,3.4822,143.65,143.64,10.74]
[1728456212465,3.4822,143.65,143.57,0.12502]
[1728456212466,3.35888001,143.58,143.57,0.12502]
[1728456240287,3.35888001,143.58,143.57,10.86502]
[1728456244305,3.35888001,143.58,143.57,0.12502]
[1728456246595,3.35888001,143.58,143.57,10.86502]
[1728456247093,4.82,143.61,143.57,10.86502]
[1728456247294,3.4837,143.59,143.57,10.86502]
[1728456248794,3.4837,143.59,143.58,10.74]
[1728456251995,102.29388111,143.62,143.58,14.2239]
[1728456251996,3.4834,143.61,143.58,14.2239]
[1728456252198,97.47388111,143.62,143.57,0.12502]
[1728456252199,97.47388111,143.62,143.6,10.74]
[1728456253196,3.4832,143.61,143.6,10.74]
[1728456255517,3.4835,143.6,143.59,10.74]
[1728456258306,3.4839,143.58,143.57,0.12502]
[1728456281940,14.2239,143.58,143.57,0.12502]
[1728456282141,19.0439,143.58,143.57,0.12502]
[1728456291650,8.3039,143.58,143.57,0.12502]
[1728456293440,8.3039,143.58,143.57,10.86502]
[1728456294539,8.3039,143.58,143.57,0.12502]
[1728456295048,3.4839,143.58,143.57,0.12502]
[1728456301048,3.4835,143.6,143.57,10.86502]
[1728456301250,3.4835,143.6,143.58,10.74]
[1728456301454,3.4835,143.6,143.59,10.74]
[1728456302148,4.82,143.63,143.59,10.74]
[1728456303154,336.3763,143.71,143.59,10.74]
[1728456303349,3.483,143.62,143.61,10.74]
[1728456304156,3.4826,143.64,143.61,14.2231]
[1728456304351,3.4826,143.64,143.62,10.74]
[1728456306660,3.4827,143.63,143.61,10.74]
[1728456307756,113.01378456,143.66,143.61,10.74]
[1728456308058,113.01378456,143.66,143.59,15.56]
[1728456308059,10.74,143.64,143.59,15.56]
[1728456309162,10.74,143.63,143.59,4.82]
[1728456309651,10.74,143.63,143.58,13.5028]
[1728456310662,10.74,143.62,143.58,2.7628]
[1728456310876,10.74,143.63,143.58,13.5028]
[1728456311866,3.4836,143.6,143.58,13.5028]
[1728456312365,10.74,143.62,143.58,13.5028]
[1728456312566,3.4837,143.59,143.58,13.5028]
[1728456313366,10.74,143.61,143.57,1.43512]
[1728456313663,3.4839,143.58,143.57,0.12502]
[1728456319574,14.2239,143.58,143.57,0.12502]
[1728456323372,14.2239,143.58,143.57,1e-08]
[1728456324485,3.4854,143.52,143.51,0.12502]
[1728456341588,14.2254,143.52,143.51,0.12502]
[1728456343090,14.2254,143.52,143.51,1e-08]
[1728456343689,17.66625736,143.52,143.51,1e-08]
[1728456353198,6.92625736,143.52,143.51,1e-08]
[1728456353398,17.66625736,143.52,143.51,1e-08]
[1728456356594,3.4868,143.46,143.45,0.12502]
[1728456362990,14.2268,143.46,143.45,0.12502]
[1728456364603,3.488,143.41,143.4,0.12518]
[1728456365202,14.228,143.41,143.4,0.12518]
[1728456368804,3.4883,143.4,143.39,0.12502]
[1728456369000,8.3283,143.4,143.39,0.12502]
[1728456371203,4.84,143.4,143.33,0.12502]
[1728456371510,3.4897,143.34,143.33,0.12502]
[1728456371701,8.3297,143.34,143.33,0.12502]
[1728456377006,19.0697,143.34,143.33,0.12502]
[1728456377907,8.3297,143.34,143.33,0.12502]
[1728456378107,3.4895,143.35,143.33,0.12502]
[1728456378610,4.84,143.36,143.33,0.12502]
[1728456378914,15.58,143.36,143.33,0.12502]
[1728456380204,3.4895,143.35,143.33,0.12502]
[1728456380616,15.58,143.36,143.33,0.12502]
[1728456381013,3.4895,143.35,143.33,0.12502]
[1728456381212,15.58,143.36,143.33,0.12502]
[1728456381912,3.4895,143.35,143.33,0.12502]
[1728456383215,97.65822187,143.38,143.33,0.12502]
[1728456383520,97.65822187,143.38,143.35,10.74]
[1728456383713,101.14712187,143.38,143.36,4.1919]
[1728456384615,97.65822187,143.38,143.36,4.1919]
[1728456384818,3.489,143.37,143.36,4.1919]
[1728456386404,101.14702187,143.38,143.36,4.1919]
[1728456386913,95.48292187,143.38,143.36,4.1919]
[1728456387311,95.48292187,143.38,143.36,14.9319]
[1728456387512,10.74,143.41,143.36,14.9319]
[1728456387513,3.4881,143.41,143.37,14.2288]
[1728456387711,3.4881,143.41,143.37,10.74]
[1728456387915,4.84,143.43,143.39,10.74]
[1728456388115,3.488,143.42,143.39,14.2285]
[1728456388420,3.488,143.42,143.39,10.74]
[1728456388720,4.96502,143.45,143.41,10.74]
[1728456388920,4.96502,143.45,143.42,1.4098]
[1728456389214,3.4873,143.44,143.42,1.4098]
[1728456390212,4.96502,143.45,143.42,1.4098]
[1728456390415,8.45222,143.45,143.42,2.8498]
[1728456390616,4.96502,143.45,143.42,2.8498]
[1728456391215,3.4873,143.44,143.42,2.8498]
[1728456391611,0.12502,143.45,143.42,13.5898]
[1728456391917,10.74,143.47,143.44,10.74]
[1728456391918,3.4867,143.47,143.44,10.74]
[1728456393218,8.3263,143.48,143.45,10.74]
[1728456393524,3.4863,143.48,143.45,10.74]
[1728456394825,10.74,143.49,143.44,10.74]
[1728456395122,3.4866,143.47,143.44,10.74]
[1728456395523,10.74,143.47,143.43,1.3919]
[1728456396428,3.4871,143.45,143.43,1.3919]
[1728456396925,3.4869,143.46,143.43,1.3919]
[1728456397119,10.74,143.47,143.43,1.3919]
[1728456397511,3.4872,143.45,143.43,1.3919]
[1728456397817,10.74,143.49,143.44,10.74]
[1728456398320,3.4867,143.47,143.44,10.74]
[1728456398827,3.4867,143.47,143.45,10.74]
[1728456399322,3.4868,143.46,143.45,10.74]
[1728456401127,3.4873,143.44,143.43,1.3919]
[1728456402622,3.4873,143.44,143.42,13.5898]
[1728456405023,3.4872,143.45,143.42,13.5898]
[1728456406328,10.74,143.47,143.42,13.5898]
[1728456406629,3.4875,143.43,143.42,13.5898]
[1728456408025,10.74,143.47,143.42,13.5898]
[1728456408327,3.4875,143.44,143.42,13.5898]
[1728456409127,10.74,143.49,143.43,10.74]
[1728456409331,3.4872,143.45,143.43,10.74]
[1728456413638,3.4872,143.45,143.43,14.2275]
[1728456415145,3.4872,143.45,143.43,10.74]
[1728456416641,3.4875,143.43,143.42,13.5898]
[1728456417540,3.4874,143.44,143.42,13.5898]
[1728456420131,3.4869,143.46,143.43,14.2275]
[1728456420335,4.84,143.47,143.43,10.74]
[1728456421237,3.4872,143.45,143.43,10.74]
[1728456423342,3.4869,143.46,143.43,14.2275]
[1728456423543,3.4869,143.46,143.45,10.74]
[1728456423742,3.4866,143.47,143.45,10.74]
[1728456426149,3.4864,143.48,143.45,14.227]
[1728456427244,1.3774,143.5,143.43,4.84]
[1728456427245,4.96502,143.51,143.46,14.2267]
[1728456427448,0.12502,143.51,143.46,14.2267]
[1728456427640,3.486,143.5,143.46,14.2267]
[1728456428157,3.486,143.5,143.46,10.74]
[1728456428447,0.12502,143.51,143.46,10.74]
[1728456428746,3.4861,143.49,143.46,10.74]
[1728456429436,3.4861,143.49,143.46,14.2267]
[1728456430443,3.4861,143.49,143.48,10.74]
[1728456433148,3.61072,143.51,143.48,14.2262]
[1728456433448,3.61072,143.51,143.49,10.74]
[1728456434458,0.12502,143.51,143.49,14.226]
[1728456434754,0.12502,143.51,143.5,10.74]
[1728456435353,0.12502,143.51,143.5,14.2258]
[1728456435557,0.12502,143.51,143.5,17.75111249]
[1728456437159,0.12502,143.51,143.5,10.74]
[1728456437855,3.61062,143.51,143.5,10.74]
[1728456438256,0.12502,143.51,143.5,10.74]
[1728456438559,0.12502,143.57,143.5,10.74]
[1728456438758,4.94502,143.57,143.53,10.74]
[1728456439054,3.4848,143.55,143.53,10.74]
[1728456439558,3.4849,143.54,143.53,10.74]
[1728456439755,4.94502,143.57,143.49,3.55075721]
[1728456439962,15.68502,143.57,143.51,10.74]
[1728456440258,10.74,143.55,143.51,10.74]
[1728456440459,3.4855,143.52,143.51,10.74]
[1728456443159,4.94502,143.57,143.51,10.74]
[1728456443357,3.485,143.54,143.53,10.74]
[1728456443849,3.4844,143.56,143.53,10.74]
[1728456444051,0.12502,143.57,143.54,10.74]
[1728456444451,3.4844,143.56,143.54,10.74]
[1728456446249,0.12502,143.57,143.54,14.2247]
[1728456446455,0.12502,143.57,143.56,10.74]
[1728456447563,0.12502,143.57,143.56,15.56]
[1728456447750,3.4835,143.6,143.56,15.56]
[1728456447952,3.4835,143.6,143.59,10.74]
[1728456448164,12.057,143.64,143.59,10.74]
[1728456448353,3.4832,143.61,143.59,10.74]
[1728456448560,1.317,143.64,143.59,10.74]
[1728456448764,1.317,143.64,143.6,10.74]
[1728456449159,3.4829,143.62,143.6,10.74]
[1728456449765,1.317,143.64,143.6,10.74]
[1728456449960,3.4832,143.61,143.59,15.56]
[1728456450363,3.4832,143.61,143.6,10.74]
[1728456450663,3.483,143.62,143.6,10.74]
[1728456451962,3.60782,143.63,143.6,10.74]
[1728456453558,3.60782,143.63,143.61,10.74]
[1728456454161,0.12502,143.63,143.61,10.74]
[1728456454362,3.4829,143.62,143.61,10.74]
[1728456460372,3.60782,143.63,143.61,10.74]
[1728456461275,0.12502,143.63,143.61,10.74]
[1728456461473,3.4829,143.62,143.61,10.74]
[1728456463369,10.74,143.62,143.54,1.429]
[1728456463575,10.74,143.6,143.55,10.74]
[1728456463876,3.4844,143.56,143.55,10.74]
[1728456464469,10.74,143.6,143.55,10.74]
[1728456464976,3.4842,143.57,143.55,10.74]
[1728456466991,3.4844,143.56,143.55,10.74]
[1728456468788,3.4843,143.57,143.55,10.74]
[1728456468995,3.4843,143.57,143.54,4.9138]
[1728456468996,3.4843,143.57,143.56,10.74]
[1728456473084,3.484,143.58,143.56,10.74]
[1728456473289,3.484,143.58,143.57,10.74]
[1728456473493,4.86,143.61,143.57,10.74]
[1728456473798,3.4838,143.59,143.57,10.74]
[1728456476592,3.4839,143.58,143.57,10.74]
[1728456481601,15.6,143.61,143.56,10.74]
[1728456481804,3.4841,143.57,143.56,10.74]
[1728456487010,3.4838,143.59,143.57,3.4841]
[1728456487208,3.4838,143.59,143.58,10.74]
[1728456488203,3.4835,143.6,143.58,10.74]
[1728456488410,97.61027566,143.63,143.59,10.74]
[1728456488604,97.61027566,143.63,143.61,10.74]
[1728456488907,3.4829,143.62,143.61,10.74]
[1728456490602,101.09307566,143.63,143.61,10.74]
[1728456490803,101.09307566,143.63,143.62,10.74]
[1728456493305,97.61027566,143.63,143.62,10.74]
[1728456493513,0.12502,143.63,143.62,10.74]
[1728456496215,0.12502,143.63,143.62,14.2229]
[1728456505819,0.12502,143.63,143.62,3.4829]
[1728456506019,0.12502,143.63,143.62,10.74]
[1728456508521,0.12502,143.63,143.61,1.4412]
[1728456508718,0.12502,143.63,143.62,10.74]
[1728456509026,3.60772,143.63,143.62,10.74]
[1728456510314,0.12502,143.63,143.62,10.74]
[1728456511224,3.60772,143.63,143.62,10.74]
[1728456513225,0.12502,143.63,143.62,10.74]
[1728456516227,3.60772,143.63,143.62,10.74]
[1728456524435,3.4835,143.6,143.58,4.88]
[1728456524635,3.4835,143.6,143.59,10.74]
[1728456525143,0.12502,143.63,143.59,10.74]
[1728456525144,3.4833,143.61,143.59,10.74]
[1728456525636,3.483,143.62,143.59,14.2236]
[1728456525839,3.483,143.62,143.61,10.74]
[1728456528336,3.4832,143.61,143.6,10.74]
[1728456537545,0.12502,143.63,143.56,1.3851]
[1728456537846,3.4838,143.59,143.58,10.74]
[1728456538146,3.4835,143.6,143.58,10.74]
[1728456538440,3.4835,143.6,143.59,10.74]
[1728456544259,3.483,143.62,143.59,14.2236]
[1728456544551,3.483,143.62,143.61,10.74]
[1728456545543,3.60782,143.63,143.61,10.74]
[1728456547444,3.60782,143.63,143.61,14.2231]
[1728456547649,3.60782,143.63,143.61,10.74]
[1728456548453,3.4829,143.62,143.61,10.74]
[1728456550958,3.4829,143.62,143.6,10.74]
[1728456553963,3.4832,143.61,143.6,10.74]
[1728456558368,3.4835,143.6,143.59,10.74]
[1728456559276,3.4834,143.61,143.59,10.74]
[1728456559977,0.12502,143.63,143.59,10.74]
[1728456560176,3.4834,143.6,143.59,10.74]
[1728456561273,3.4833,143.61,143.59,10.74]
[1728456561467,3.4833,143.61,143.6,10.74]
[1728456561974,3.4835,143.6,143.59,10.74]
[1728456564378,3.4837,143.59,143.56,4.8694]
[1728456564578,10.74,143.62,143.56,12.1251]
[1728456564770,0.12502,143.63,143.58,10.74]
[1728456564977,0.12502,143.63,143.59,10.74]
[1728456565176,3.4835,143.6,143.59,10.74]
[1728456565375,0.12502,143.63,143.59,10.74]
[1728456565869,3.4833,143.61,143.59,10.74]
[1728456566677,3.4834,143.6,143.59,10.74]
[1728456568383,3.4837,143.59,143.57,10.74]
[1728456570081,10.74,143.62,143.57,10.74]
[1728456570875,3.4838,143.59,143.57,10.74]
[1728456572883,10.74,143.62,143.57,10.74]
[1728456573082,3.4839,143.58,143.57,10.74]
[1728456578982,10.74,143.62,143.51,0.12502]
[1728456579190,3.4843,143.57,143.55,10.74]
[1728456579379,17.0402,143.61,143.55,10.74]
[1728456579587,3.4836,143.6,143.55,10.74]
[1728456579784,17.0402,143.61,143.55,10.74]
[1728456580487,3.4843,143.57,143.55,10.74]
[1728456581681,6.3002,143.61,143.55,10.74]
[1728456581885,3.484,143.58,143.57,10.74]
[1728456585888,17.0402,143.61,143.55,14.2246]
[1728456586089,17.0402,143.61,143.53,4.88]
[1728456586283,17.0402,143.61,143.55,10.74]
[1728456588097,3.4841,143.58,143.57,10.74]
[1728456590795,3.4842,143.57,143.55,10.74]
[1728456591195,3.4842,143.57,143.54,7.01431908]
[1728456591395,3.4842,143.57,143.55,10.74]
[1728456592997,3.4841,143.58,143.55,14.2246]
[1728456594504,3.4841,143.58,143.56,10.74]
[1728456600396,3.4837,143.59,143.56,14.2243]
[1728456602709,1.4202,143.61,143.56,10.74]
[1728456602910,3.4839,143.58,143.55,14.2245]
[1728456606109,3.4839,143.58,143.55,3.4845]
[1728456606410,3.4839,143.58,143.55,14.2245]
[1728456610811,12.1602,143.61,143.53,4.86]
[1728456611009,10.74,143.59,143.52,4.95685526]
[1728456611311,4.86,143.59,143.53,10.74]
[1728456612404,3.4843,143.57,143.54,3.4848]
[1728456613004,3.4845,143.56,143.53,14.225]
[1728456613208,3.4845,143.56,143.53,10.74]
[1728456613406,10.74,143.58,143.52,12.1433]
[1728456613615,3.4849,143.54,143.52,12.1433]
[1728456614015,3.4847,143.55,143.52,12.1433]
[1728456614218,3.4847,143.55,143.53,10.74]
[1728456620521,3.485,143.54,143.52,12.1433]
[1728456624922,3.485,143.54,143.52,1.4033]
[1728456626219,3.4854,143.52,143.51,0.12502]
[1728456652760,6.9664,143.61,143.51,10.86502]
[1728456652961,10.74,143.58,143.53,10.74]
[1728456653255,3.4846,143.56,143.53,10.74]
[1728456653853,3.4846,143.55,143.53,10.74]
[1728456654757,3.4846,143.55,143.52,14.2252]
[1728456655265,3.485,143.54,143.52,10.74]
[1728456656058,4.84,143.57,143.51,1.54412]
[1728456656059,3.4851,143.53,143.51,1.54412]
[1728456661569,3.4848,143.55,143.52,10.74]
[1728456662462,3.4848,143.55,143.52,14.2253]
[1728456663374,15.58,143.57,143.52,10.74]
[1728456663578,3.4849,143.54,143.52,10.74]
[1728456663972,10.74,143.55,143.51,5.02962]
[1728456665381,3.4849,143.54,143.51,5.02962]
[1728456665876,3.4849,143.54,143.51,1.54412]
[1728456667780,3.4849,143.54,143.51,15.76962]
[1728456668083,3.4847,143.55,143.53,10.74]
[1728456679888,15.58,143.58,143.53,10.74]
[1728456680082,3.4849,143.54,143.52,3.4853]
[1728456680288,10.74,143.55,143.51,1.54412]
[1728456680488,10.74,143.57,143.51,12.28412]
[1728456680689,3.485,143.54,143.51,12.28412]
[1728456680887,10.74,143.57,143.51,15.76972]
[1728456681185,10.74,143.57,143.51,12.28412]
[1728456681778,3.4851,143.53,143.51,15.76972]
[1728456684288,3.485,143.54,143.51,15.76972]
[1728456688393,10.74,143.54,143.51,0.12502]
[1728456689391,3.4854,143.52,143.51,0.12502]
[1728456690589,3.4853,143.53,143.51,0.12502]
[1728456691293,10.74,143.54,143.51,0.12502]
[1728456691503,3.4854,143.52,143.51,0.12502]
[1728456692092,14.2254,143.52,143.51,0.12502]
[1728456695192,3.4854,143.52,143.51,0.12502]
[1728456706092,3.4852,143.53,143.51,10.86502]
[1728456706296,1.3921,143.58,143.52,10.74]
[1728456706498,97.49989756,143.59,143.56,10.74]
[1728456707806,97.49989756,143.59,143.55,10.74]
[1728456708003,3.4844,143.56,143.54,10.74]
[1728456709100,3.4842,143.57,143.55,10.74]
[1728456709901,3.4842,143.57,143.54,3.4849]
[1728456710102,3.4842,143.57,143.54,14.2249]
[1728456711909,3.4842,143.57,143.54,10.74]
[1728456712902,3.4842,143.57,143.54,14.2249]
[1728456713608,97.49989756,143.59,143.54,14.2249]
[1728456713913,3.4841,143.58,143.56,10.74]
[1728456715612,97.49989756,143.59,143.56,14.2243]
[1728456715613,100.98359756,143.59,143.56,14.2243]
[1728456715808,100.98359756,143.59,143.56,10.74]
[1728456716914,3.4839,143.58,143.56,10.74]
[1728456721214,3.4839,143.58,143.55,6.93284584]
[1728456721515,3.4839,143.58,143.57,10.74]
[1728456723720,3.4839,143.58,143.55,14.18834584]
[1728456723918,3.4844,143.56,143.54,15.56]
[1728456724223,97.49989756,143.59,143.54,10.74]
[1728456725517,3.4844,143.57,143.54,10.74]
[1728456726723,97.49989756,143.59,143.54,10.74]
[1728456726923,3.4844,143.56,143.54,10.74]
[1728456727125,97.49989756,143.59,143.54,14.2248]
[1728456727420,3.4843,143.57,143.54,14.2248]
[1728456731931,3.4843,143.57,143.54,3.4848]
[1728456732132,3.4843,143.57,143.55,10.74]
[1728456738745,3.484,143.58,143.55,14.2246]
[1728456743348,3.484,143.58,143.57,10.74]
[1728456743657,0.1381,143.68,143.57,10.74]
[1728456743658,4.82,143.65,143.57,10.74]
[1728456743851,4.82,143.65,143.61,10.74]
[1728456744655,3.4826,143.64,143.6,3.4833]
[1728456744953,4.82,143.65,143.6,10.74]
[1728456746655,3.4831,143.62,143.6,10.74]
[1728456746953,3.4831,143.62,143.61,10.74]
[1728456749355,3.4831,143.62,143.6,10.74]
[1728456752155,3.4834,143.61,143.59,4.82]
[1728456752450,4.82,143.65,143.58,1.3704]
[1728456752451,10.86502,143.63,143.58,1.3704]
[1728456752847,3.483,143.62,143.58,1.3704]
[1728456753048,10.86502,143.63,143.58,1.3704]
[1728456753352,10.86502,143.63,143.58,12.1104]
[1728456753555,3.4835,143.6,143.58,12.1104]
[1728456760061,3.4835,143.6,143.58,1.3704]
[1728456760255,3.4835,143.6,143.55,10.74]
[1728456760256,3.4841,143.58,143.55,10.74]
[1728456760759,3.4838,143.59,143.55,10.74]
[1728456760957,10.74,143.6,143.55,10.74]
[1728456762468,3.4841,143.58,143.55,10.74]
[1728456763360,3.4842,143.57,143.54,1.4215]
[1728456763562,10.74,143.58,143.54,6.2415]
[1728456763765,10.74,143.58,143.54,16.9815]
[1728456764559,10.74,143.59,143.54,20.4663]
[1728456765760,3.4841,143.58,143.54,20.4663]
[1728456765961,10.74,143.59,143.54,1.4215]
[1728456766265,1.3607,143.61,143.54,1.4215]
[1728456766266,10.74,143.58,143.54,1.4215]
[1728456766875,3.4842,143.57,143.54,1.4215]
[1728456767173,10.74,143.58,143.54,1.4215]
[1728456768069,3.4843,143.57,143.54,1.4215]
[1728456770078,3.4841,143.58,143.55,10.74]
[1728456771464,3.4841,143.58,143.55,14.2246]
[1728456772473,15.56,143.59,143.55,10.74]
[1728456772674,3.4842,143.57,143.55,10.74]
[1728456780781,4.82,143.59,143.55,10.74]
[1728456781580,3.4844,143.56,143.55,10.74]
[1728456783174,3.4844,143.56,143.53,15.595]
[1728456787089,10.74,143.57,143.52,1.4159]
[1728456788587,3.485,143.54,143.52,1.4159]
[1728456788793,3.485,143.54,143.53,10.74]
[1728456797995,3.4851,143.53,143.52,1.4159]
[1728456799505,3.485,143.54,143.52,12.1559]
[1728456804308,3.485,143.54,143.52,1.4159]
[1728456805610,1.3607,143.61,143.52,1.4159]
[1728456805801,10.74,143.59,143.53,10.74]
[1728456806004,108.2425715,143.6,143.54,10.74]
[1728456806304,4.82,143.59,143.54,10.74]
[1728456807105,3.4843,143.57,143.54,14.2248]
[1728456809208,3.4843,143.57,143.54,10.74]
[1728456809509,3.4843,143.57,143.55,3.4846]
[1728456811804,3.4843,143.57,143.54,14.2248]
[1728456815316,3.4843,143.57,143.54,10.74]
[1728456815516,3.4846,143.56,143.53,19.045]
[1728456815915,10.74,143.57,143.53,15.56]
[1728456816117,3.4847,143.55,143.53,15.56]
[1728456817813,3.4845,143.56,143.53,15.56]
[1728456818913,3.4845,143.56,143.53,10.74]
[1728456820716,3.4846,143.56,143.53,10.74]
[1728456821317,10.74,143.57,143.53,10.74]